[Event "EYCC Open-U12 2019"]
[Site "Bratislava"]
[Date "2019.08.10"]
[Round "9.29"]
[White "De Winter, Arthur"]
[Black "Hagner, Bennet"]
[Result "1/2-1/2"]
[ECO "C92"]
[WhiteElo "1859"]
[BlackElo "1831"]
[Annotator "NA RC"]
[PlyCount "86"]
[EventDate "2019.08.02"]
[EventType "swiss"]
[EventCountry "SVK"]
[SourceTitle "playchess.com"]
[Source "ChessBase"]
[SourceQuality "1"]
[TimeControl "40/5400+30:1800+30"]

1. e4 {[%emt 0:00:00]} e5 {[%emt 0:00:00]} 2. Nf3 {[%emt 0:00:00]} Nc6 {[%emt 0:00:00]} 3. Bb5 {[%emt 0:00:00]} a6 {[%emt 0:00:00]} 4. Ba4 {[%emt 0:00:00]} Nf6 {[%emt 0:00:00]} 5. O-O {[%emt 0:00:00]} Be7 {[%emt 0:00:00]} 6. Re1 {[%emt 0:00:00]} b5 {[%emt 0:00:03]} 7. Bb3 {[%emt 0:00:01]} d6 {[%emt 0:00:05]} 8. c3 {[%emt 0:00:30]} O-O {[%emt 0:00:12]} 9. h3 {[%emt 0:00:05]} Bb7 {[%emt 0:00:07]} 10. d4 {[%emt 0:01:05]} Re8 {[%emt 0:00:13]} 11. Nbd2 {[%emt 0:03:47]} Bf8 {[%emt 0:00:17]} 12. Bc2 {[%emt 0:01:55]} g6 {[%emt 0:00:32]} 13. a4 {[%emt 0:02:47]} exd4 {[%emt 0:02:59]} 14. cxd4 {[%emt 0:00:37]} Nb4 {[%emt 0:00:23]} 15. Bb1 {[%emt 0:01:15]} c5 {[%emt 0:00:25]} 16. d5 {[%emt 0:03:22]} Nd7 {[%emt 0:01:36]} 17. Nf1 {[%emt 0:03:37]} Bg7 {[%emt 0:04:43]} 18. Re2 {[%emt 0:04:11]} c4 {[%emt 0:03:56]} 19. axb5 {[%emt 0:02:02]} axb5 {[%emt 0:00:51]} 20. Rxa8 {[%emt 0:00:10]} Qxa8 {[%emt 0:07:21]} 21. Bf4 {[%emt 0:00:55]} Ne5 {[%emt 0:04:17]} 22. Nxe5 {[%emt 0:00:54]} Bxe5 {[%emt 0:00:08]} 23. Bxe5 {[%emt 0:00:47]} Rxe5 {[%emt 0:00:07]} 24. Qd2 {[%emt 0:01:56]} Qa4 {[%emt 0:05:21]} 25. Re3 {[%emt 0:03:56]} Na6 {[%emt 0:04:01]} 26. f4 {[%emt 0:01:15]} Re8 {[%emt 0:02:14]} 27. Ra3 {[%emt 0:08:45]} Qb4 {[%emt 0:00:11]} 28. Qxb4 {[%emt 0:00:08]} Nxb4 {[%emt 0:00:05]} 29. Ra7 {[%emt 0:00:12]} Rb8 {[%emt 0:03:12]} 30. Kf2 {[%emt 0:01:54]} Kf8 {[%emt 0:02:33]} 31. Ne3 {[%emt 0:04:28]} Ke7 {[%emt 0:06:33]} 32. Ra5 {[%emt 0:11:21]} Ba6 {[%emt 0:05:53]} 33. Ke1 {[%emt 0:00:57]} Kd7 {[%emt 0:01:06]} 34. Kd2 {[%emt 0:00:14]} Bc8 {[%emt 0:05:42]} 35. Ra7+ {[%emt 0:05:27]} Bb7 {[%emt 0:03:02]} 36. Ra5 {[%emt 0:00:12]} Bc8 {[%emt 0:00:55]} 37. Nd1 {[%emt 0:04:52]} Kc7 {[%emt 0:03:08]} 38. Nc3 {[%emt 0:01:40]} Ba6 {[%emt 0:00:16]} 39. Na2 {[%emt 0:01:06]} Nxa2 {[%emt 0:01:10]} 40. Rxa6 {[%emt 0:00:00]} Nb4 {[%emt 0:00:00]} 41. Ra7+ {[%emt 0:01:17]} Rb7 {[%emt 0:00:42]} 42. Ra8 {[%emt 0:01:19]} Rb8 {[%emt 0:00:58]} 43. Ra7+ {[%emt 0:01:11]} Rb7 {[%emt 0:00:11]} 1/2-1/2

[Event "EYCC Open-U12 2019"]
[Site "Bratislava"]
[Date "2019.08.10"]
[Round "9.30"]
[White "Bialiauski, Artsiom"]
[Black "Milanovic, Marko"]
[Result "1-0"]
[ECO "D02"]
[WhiteElo "1784"]
[BlackElo "1814"]
[Annotator "NA RC"]
[PlyCount "91"]
[EventDate "2019.08.02"]
[EventType "swiss"]
[EventCountry "SVK"]
[SourceTitle "playchess.com"]
[Source "ChessBase"]
[SourceQuality "1"]
[TimeControl "40/5400+30:1800+30"]

1. d4 {[%emt 0:00:00]} d5 {[%emt 0:00:00]} 2. Nf3 {[%emt 0:00:27]} Nf6 {[%emt 0:00:00]} 3. Bf4 {[%emt 0:00:41]} c5 {[%emt 0:00:03]} 4. c3 {[%emt 0:01:15]} Nc6 {[%emt 0:00:30]} 5. e3 {[%emt 0:00:59]} Qb6 {[%emt 0:00:35]} 6. Qb3 {[%emt 0:00:20]} c4 {[%emt 0:00:40]} 7. Qc2 {[%emt 0:00:06]} Bf5 {[%emt 0:01:08]} 8. Qc1 {[%emt 0:00:06]} h6 {[%emt 0:02:30]} 9. Nbd2 {[%emt 0:02:14]} e6 {[%emt 0:02:25]} 10. h3 {[%emt 0:02:00]} Qa5 {[%emt 0:04:42]} 11. Be2 {[%emt 0:03:23]} b5 {[%emt 0:05:52]} 12. b4 {[%emt 0:05:04]} Nxb4 {[%emt 0:16:52]} 13. cxb4 {[%emt 0:03:18]} Bxb4 {[%emt 0:00:29]} 14. O-O {[%emt 0:25:52]} Bc3 {[%emt 0:07:57]} 15. Bc7 {[%emt 0:00:10]} Qb4 {[%emt 0:02:43]} 16. a3 {[%emt 0:09:13]} Qb2 {[%emt 0:04:56]} 17. Qxb2 {[%emt 0:00:06]} Bxb2 {[%emt 0:00:03]} 18. Ra2 {[%emt 0:00:07]} Bc3 {[%emt 0:07:45]} 19. Rc1 {[%emt 0:00:39]} Kd7 {[%emt 0:01:43]} 20. Bf4 {[%emt 0:12:12]} Ba5 {[%emt 0:02:24]} 21. Ne5+ {[%emt 0:01:29]} Ke8 {[%emt 0:00:22]} 22. Nc6 {[%emt 0:05:07]} Bb6 {[%emt 0:00:48]} 23. a4 {[%emt 0:02:58]} bxa4 {[%emt 0:04:11]} 24. Rxa4 {[%emt 0:00:19]} Kd7 {[%emt 0:01:11]} 25. Ne5+ {[%emt 0:00:47]} Ke7 {[%emt 0:00:10]} 26. Nc6+ {[%emt 0:05:05]} Kd7 {[%emt 0:00:17]} 27. Ne5+ {[%emt 0:00:02]} Ke7 {[%emt 0:00:19]} 28. Nc6+ {[%emt 0:00:06]} Kd7 {[%emt 0:00:04]} 29. Ne5+ {[%emt 0:00:38]} Ke7 {[%emt 0:00:07]} 30. Nb1 {[%emt 0:00:06]} Rhc8 {[%emt 0:08:27]} 31. Nc3 {[%emt 0:00:41]} Ne8 {[%emt 0:04:05]} 32. Bf3 {[%emt 0:01:11]} f6 {[%emt 0:01:49]} 33. Nxc4 {[%emt 0:00:42]} dxc4 {[%emt 0:02:26]} 34. Bxa8 {[%emt 0:00:21]} Rxa8 {[%emt 0:00:38]} 35. Rxc4 {[%emt 0:00:08]} Nd6 {[%emt 0:00:53]} 36. Rc6 {[%emt 0:00:58]} Nf7 {[%emt 0:03:13]} 37. Na4 {[%emt 0:02:58]} Ba5 {[%emt 0:00:30]} 38. Ra6 {[%emt 0:00:18]} Bd8 {[%emt 0:00:57]} 39. Bc7 {[%emt 0:00:42]} Bd3 {[%emt 0:00:38]} 40. Bxd8+ {[%emt 0:00:00]} Kxd8 {[%emt 0:00:00]} 41. Rxe6 {[%emt 0:00:40]} Bb5 {[%emt 0:01:24]} 42. Nc5 {[%emt 0:01:10]} Ng5 {[%emt 0:00:42]} 43. Nb7+ {[%emt 0:00:12]} Kd7 {[%emt 0:00:44]} 44. Rd6+ {[%emt 0:00:16]} Ke8 {[%emt 0:00:36]} 45. Rc7 {[%emt 0:00:33]} a5 {[%emt 0:00:59]} 46. Rc5 {[%emt 0:01:21]} 1-0

[Event "EYCC Open-U12 2019"]
[Site "Bratislava"]
[Date "2019.08.10"]
[Round "9.31"]
[White "Costa, Leonardo"]
[Black "Franc, Borna"]
[Result "1-0"]
[ECO "C50"]
[WhiteElo "2002"]
[BlackElo "1826"]
[Annotator "NA RC"]
[PlyCount "91"]
[EventDate "2019.08.02"]
[EventType "swiss"]
[EventCountry "SVK"]
[SourceTitle "playchess.com"]
[Source "ChessBase"]
[SourceQuality "1"]
[TimeControl "40/5400+30:1800+30"]

1. e4 {[%emt 0:00:00]} e5 {[%emt 0:00:00]} 2. Nf3 {[%emt 0:00:00]} Nc6 {[%emt 0:00:00]} 3. Bc4 {[%emt 0:00:00]} Bc5 {[%emt 0:00:05]} 4. d3 {[%emt 0:00:00]} Nf6 {[%emt 0:00:21]} 5. O-O {[%emt 0:00:29]} d6 {[%emt 0:00:07]} 6. c3 {[%emt 0:00:13]} Bg4 {[%emt 0:00:21]} 7. Nbd2 {[%emt 0:00:56]} Qd7 {[%emt 0:03:07]} 8. b4 {[%emt 0:05:22]} Bb6 {[%emt 0:00:08]} 9. Re1 {[%emt 0:00:40]} h6 {[%emt 0:02:01]} 10. Nf1 {[%emt 0:02:29]} O-O-O {[%emt 0:05:39]} 11. Bb5 {[%emt 0:11:42]} d5 {[%emt 0:07:50]} 12. Qe2 {[%emt 0:14:54]} dxe4 {[%emt 0:05:39]} 13. dxe4 {[%emt 0:00:10]} Bxf3 {[%emt 0:01:19]} 14. Qxf3 {[%emt 0:01:32]} Qg4 {[%emt 0:01:16]} 15. Ng3 {[%emt 0:07:52]} Qxf3 {[%emt 0:03:06]} 16. gxf3 Rd7 {[%emt 0:02:32]} 17. Nf5 {[%emt 0:01:44]} Rhd8 {[%emt 0:03:17]} 18. Kf1 {[%emt 0:01:16]} Nh5 {[%emt 0:01:59]} 19. Ke2 {[%emt 0:10:55]} Nf4+ {[%emt 0:03:23]} 20. Bxf4 {[%emt 0:00:05]} exf4 {[%emt 0:00:03]} 21. Rad1 {[%emt 0:00:12]} Rxd1 {[%emt 0:00:34]} 22. Rxd1 {[%emt 0:00:06]} Rxd1 {[%emt 0:00:08]} 23. Kxd1 {[%emt 0:00:02]} Bxf2 {[%emt 0:00:18]} 24. Bxc6 {[%emt 0:01:34]} bxc6 {[%emt 0:00:13]} 25. Nxg7 {[%emt 0:00:06]} Bg1 {[%emt 0:04:49]} 26. h3 {[%emt 0:00:15]} Bf2 {[%emt 0:02:05]} 27. Nf5 {[%emt 0:04:42]} h5 {[%emt 0:00:19]} 28. Ke2 {[%emt 0:00:11]} Bb6 {[%emt 0:02:58]} 29. Ng7 {[%emt 0:00:09]} h4 {[%emt 0:00:06]} 30. Nf5 {[%emt 0:00:03]} c5 {[%emt 0:00:52]} 31. Nxh4 {[%emt 0:08:58]} Kd7 {[%emt 0:00:09]} 32. Ng2 {[%emt 0:00:28]} cxb4 {[%emt 0:00:13]} 33. cxb4 {[%emt 0:00:05]} c5 {[%emt 0:00:18]} 34. bxc5 {[%emt 0:00:11]} Bxc5 {[%emt 0:00:02]} 35. Nxf4 {[%emt 0:00:05]} Kd6 {[%emt 0:00:07]} 36. Nd3 {[%emt 0:01:36]} Bd4 {[%emt 0:00:47]} 37. f4 {[%emt 0:02:31]} f6 {[%emt 0:00:08]} 38. Kf3 {[%emt 0:00:13]} Ke6 {[%emt 0:00:06]} 39. Kg4 {[%emt 0:01:31]} Bb6 {[%emt 0:00:09]} 40. h4 {[%emt 0:00:00]} Bc7 {[%emt 0:00:00]} 41. Nc5+ {[%emt 0:10:38]} Kd6 {[%emt 0:01:08]} 42. Nb3 {[%emt 0:00:12]} Bb6 {[%emt 0:00:13]} 43. Kf5 {[%emt 0:00:07]} Ke7 {[%emt 0:00:06]} 44. Kg6 {[%emt 0:02:12]} Be3 {[%emt 0:00:16]} 45. f5 {[%emt 0:00:17]} Kd6 {[%emt 0:01:07]} 46. Kxf6 {[%emt 0:00:51]} 1-0

[Event "EYCC Open-U12 2019"]
[Site "Bratislava"]
[Date "2019.08.10"]
[Round "9.32"]
[White "Gregoric, Andraz"]
[Black "Eliseev, Sergey"]
[Result "0-1"]
[ECO "B53"]
[WhiteElo "1911"]
[BlackElo "2053"]
[Annotator "NA RC"]
[PlyCount "158"]
[EventDate "2019.08.02"]
[EventType "swiss"]
[EventCountry "SVK"]
[SourceTitle "playchess.com"]
[Source "ChessBase"]
[SourceQuality "1"]
[TimeControl "40/5400+30:1800+30"]

1. e4 {[%emt 0:00:00]} c5 {[%emt 0:00:00]} 2. Nf3 {[%emt 0:00:00]} d6 {[%emt 0:00:00]} 3. d4 {[%emt 0:00:00]} cxd4 {[%emt 0:00:00]} 4. Qxd4 {[%emt 0:00:00]} a6 {[%emt 0:00:37]} 5. h3 {[%emt 0:00:21]} Nc6 {[%emt 0:00:31]} 6. Qd3 {[%emt 0:00:20]} g6 {[%emt 0:01:02]} 7. c4 {[%emt 0:00:39]} Bg7 {[%emt 0:00:26]} 8. Nc3 {[%emt 0:00:28]} Nf6 {[%emt 0:01:11]} 9. Be3 {[%emt 0:00:55]} Qa5 {[%emt 0:02:39]} 10. Qd2 {[%emt 0:08:15]} O-O {[%emt 0:07:08]} 11. Be2 {[%emt 0:01:46]} Nd7 {[%emt 0:08:39]} 12. O-O {[%emt 0:07:03]} Nc5 {[%emt 0:03:40]} 13. Qc2 {[%emt 0:29:54]} f5 {[%emt 0:24:23]} 14. exf5 {[%emt 0:04:06]} Bxf5 {[%emt 0:01:31]} 15. Qd2 {[%emt 0:00:37]} Kh8 {[%emt 0:09:25]} 16. Nd4 {[%emt 0:05:24]} Ne4 {[%emt 0:06:46]} 17. Nxc6 {[%emt 0:03:23]} Qxc3 {[%emt 0:05:07]} 18. bxc3 {[%emt 0:06:53]} Nxd2 {[%emt 0:00:33]} 19. Bxd2 {[%emt 0:00:04]} bxc6 {[%emt 0:00:06]} 20. g4 {[%emt 0:00:05]} Bd7 {[%emt 0:04:08]} 21. Kg2 {[%emt 0:07:57]} c5 {[%emt 0:01:39]} 22. Bf3 {[%emt 0:00:45]} Rab8 {[%emt 0:02:12]} 23. Rab1 {[%emt 0:00:48]} Ba4 {[%emt 0:04:28]} 24. Rfe1 {[%emt 0:01:40]} e5 {[%emt 0:07:48]} 25. Be4 {[%emt 0:01:03]} Bf6 {[%emt 0:01:43]} 26. g5 {[%emt 0:01:51]} Be7 {[%emt 0:00:04]} 27. f3 {[%emt 0:00:27]} Bd7 {[%emt 0:00:40]} 28. Kg3 {[%emt 0:04:04]} Be6 {[%emt 0:01:40]} 29. Bd5 {[%emt 0:01:21]} Bf5 {[%emt 0:00:37]} 30. Be4 {[%emt 0:00:07]} Kg7 {[%emt 0:02:54]} 31. h4 {[%emt 0:06:31]} Kg8 {[%emt 0:02:48]} 32. Bd5+ {[%emt 0:00:28]} Kh8 {[%emt 0:00:32]} 33. Be4 {[%emt 0:02:37]} Kg7 {[%emt 0:00:08]} 34. Be3 {[%emt 0:01:39]} Rfc8 {[%emt 0:00:51]} 35. Bd2 {[%emt 0:01:49]} Kf7 {[%emt 0:00:25]} 36. Rb3 {[%emt 0:01:35]} Be6 {[%emt 0:00:50]} 37. Reb1 {[%emt 0:01:50]} Rxb3 {[%emt 0:00:07]} 38. axb3 {[%emt 0:00:05]} a5 {[%emt 0:00:51]} 39. Kf2 {[%emt 0:01:20]} Rb8 {[%emt 0:00:16]} 40. Ke3 {[%emt 0:00:00]} Bd8 {[%emt 0:00:00]} 41. Bc1 {[%emt 0:05:46]} Bf5 {[%emt 0:04:49]} 42. Rb2 {[%emt 0:01:24]} Kg7 {[%emt 0:04:11]} 43. Kf2 {[%emt 0:01:47]} Bc7 {[%emt 0:02:40]} 44. Bc6 {[%emt 0:03:03]} Be6 {[%emt 0:05:38]} 45. Be4 {[%emt 0:03:31]} Bd7 {[%emt 0:00:28]} 46. Bd5 {[%emt 0:02:17]} Kf8 {[%emt 0:01:48]} 47. Be4 {[%emt 0:01:42]} Be6 {[%emt 0:04:47]} 48. Bc6 {[%emt 0:00:16]} Ke7 {[%emt 0:00:09]} 49. Ke2 {[%emt 0:02:11]} Rxb3 {[%emt 0:00:50]} 50. Kd3 {[%emt 0:00:49]} Rxb2 {[%emt 0:06:59]} 51. Bxb2 {[%emt 0:00:13]} Kf7 {[%emt 0:01:25]} 52. Bc1 {[%emt 0:02:28]} Bd8 {[%emt 0:01:02]} 53. Bd5 {[%emt 0:02:44]} Ke7 {[%emt 0:00:44]} 54. Bc6 {[%emt 0:00:31]} Bb6 {[%emt 0:00:47]} 55. Bd2 {[%emt 0:00:13]} Kd8 {[%emt 0:01:15]} 56. Bc1 {[%emt 0:00:31]} Kc7 {[%emt 0:00:32]} 57. Be4 {[%emt 0:00:17]} Ba7 {[%emt 0:00:45]} 58. Bb2 {[%emt 0:01:05]} Kb6 {[%emt 0:00:29]} 59. Bc1 {[%emt 0:00:19]} Bf7 {[%emt 0:00:40]} 60. h5 {[%emt 0:03:31]} Bb8 {[%emt 0:00:23]} 61. h6 {[%emt 0:00:37]} Bc7 {[%emt 0:00:14]} 62. Bd5 {[%emt 0:01:12]} Bxd5 {[%emt 0:00:14]} 63. cxd5 {[%emt 0:00:05]} Kb5 {[%emt 0:00:42]} 64. Bd2 {[%emt 0:02:37]} c4+ {[%emt 0:00:36]} 65. Ke4 {[%emt 0:00:12]} a4 {[%emt 0:00:15]} 66. Bc1 {[%emt 0:00:35]} Bb6 {[%emt 0:00:16]} 67. f4 {[%emt 0:00:37]} exf4 {[%emt 0:00:05]} 68. Kxf4 {[%emt 0:00:03]} Bc5 {[%emt 0:00:18]} 69. Kf3 {[%emt 0:00:41]} a3 {[%emt 0:00:06]} 70. Ke2 {[%emt 0:00:03]} Ka4 {[%emt 0:00:16]} 71. Kd2 {[%emt 0:00:53]} Kb3 {[%emt 0:00:12]} 72. Bxa3 {[%emt 0:00:08]} Bxa3 {[%emt 0:00:05]} 73. Ke3 {[%emt 0:00:10]} Kxc3 {[%emt 0:00:11]} 74. Ke4 {[%emt 0:00:05]} Kd2 {[%emt 0:00:13]} 75. Kd4 {[%emt 0:00:12]} c3 {[%emt 0:00:07]} 76. Ke4 {[%emt 0:00:03]} c2 {[%emt 0:00:06]} 77. Kd4 {[%emt 0:00:04]} c1=Q {[%emt 0:00:13]} 78. Ke4 {[%emt 0:00:03]} Qf1 {[%emt 0:00:34]} 79. Kd4 {[%emt 0:00:05]} Qf4# 0-1

[Event "EYCC Open-U12 2019"]
[Site "Bratislava"]
[Date "2019.08.10"]
[Round "9.33"]
[White "Georgiev, Konstantin"]
[Black "Krawczyk, Flawian"]
[Result "0-1"]
[ECO "A05"]
[WhiteElo "1919"]
[BlackElo "1848"]
[Annotator "NA RC"]
[PlyCount "62"]
[EventDate "2019.08.02"]
[EventType "swiss"]
[EventCountry "SVK"]
[SourceTitle "playchess.com"]
[Source "ChessBase"]
[SourceQuality "1"]
[TimeControl "40/5400+30:1800+30"]

1. Nf3 {[%emt 0:00:00]} Nf6 {[%emt 0:00:00]} 2. g3 {[%emt 0:00:00]} g6 {[%emt 0:00:00]} 3. b4 {[%emt 0:00:00]} Bg7 {[%emt 0:00:14]} 4. Bb2 {[%emt 0:00:00]} d6 {[%emt 0:00:57]} 5. Bg2 {[%emt 0:00:01]} a6 {[%emt 0:00:27]} 6. O-O {[%emt 0:00:26]} O-O {[%emt 0:00:05]} 7. d3 {[%emt 0:00:26]} e5 {[%emt 0:00:38]} 8. Nbd2 {[%emt 0:00:11]} Nc6 {[%emt 0:00:13]} 9. a3 {[%emt 0:00:05]} Nh5 {[%emt 0:01:58]} 10. c4 {[%emt 0:01:28]} f5 {[%emt 0:02:49]} 11. b5 {[%emt 0:08:20]} axb5 {[%emt 0:07:19]} 12. cxb5 {[%emt 0:00:58]} Na5 {[%emt 0:02:41]} 13. Qc2 {[%emt 0:03:34]} Be6 {[%emt 0:01:38]} 14. Rfd1 {[%emt 0:23:58]} g5 {[%emt 0:07:11]} 15. Nc4 {[%emt 0:01:45]} Nxc4 {[%emt 0:03:27]} 16. dxc4 {[%emt 0:00:17]} Qe7 {[%emt 0:00:32]} 17. Nd2 {[%emt 0:05:17]} Rab8 {[%emt 0:04:32]} 18. a4 {[%emt 0:02:17]} b6 {[%emt 0:05:12]} 19. a5 {[%emt 0:02:03]} bxa5 {[%emt 0:00:49]} 20. Nb3 {[%emt 0:00:27]} Qf7 {[%emt 0:01:34]} 21. Nxa5 {[%emt 0:00:18]} f4 {[%emt 0:01:55]} 22. e3 {[%emt 0:01:06]} f3 {[%emt 0:01:10]} 23. Bf1 {[%emt 0:00:02]} Nf6 {[%emt 0:01:00]} 24. Nc6 {[%emt 0:05:09]} Qh5 {[%emt 0:03:24]} 25. e4 {[%emt 0:03:40]} Ng4 {[%emt 0:01:12]} 26. h3 {[%emt 0:00:01]} Ne3 {[%emt 0:01:29]} 27. fxe3 {[%emt 0:00:24]} f2+ {[%emt 0:00:06]} 28. Kh2 {[%emt 0:00:04]} Bxh3 {[%emt 0:00:09]} 29. Bxh3 {[%emt 0:02:34]} g4 {[%emt 0:00:02]} 30. Ne7+ {[%emt 0:00:08]} Kh8 {[%emt 0:00:12]} 31. Qxf2 {[%emt 0:00:17]} Rxf2+ {[%emt 0:00:11]} 0-1

[Event "EYCC Open-U12 2019"]
[Site "Bratislava"]
[Date "2019.08.10"]
[Round "9.36"]
[White "Gschiel, Alexander"]
[Black "Mekhane, Adam"]
[Result "1/2-1/2"]
[ECO "E91"]
[WhiteElo "1768"]
[BlackElo "2040"]
[Annotator "NA RC"]
[PlyCount "192"]
[EventDate "2019.08.02"]
[EventType "swiss"]
[EventCountry "SVK"]
[SourceTitle "playchess.com"]
[Source "ChessBase"]
[SourceQuality "1"]
[TimeControl "40/5400+30:1800+30"]

1. d4 {[%emt 0:00:00]} Nf6 {[%emt 0:00:34]} 2. c4 {[%emt 0:00:00]} g6 {[%emt 0:00:06]} 3. Nc3 {[%emt 0:00:03]} Bg7 {[%emt 0:00:22]} 4. Nf3 {[%emt 0:00:42]} O-O {[%emt 0:00:28]} 5. e4 {[%emt 0:00:24]} d6 {[%emt 0:00:14]} 6. Be2 {[%emt 0:00:55]} Na6 {[%emt 0:00:30]} 7. O-O {[%emt 0:01:55]} e5 {[%emt 0:00:10]} 8. dxe5 {[%emt 0:03:39]} dxe5 {[%emt 0:00:50]} 9. Qxd8 {[%emt 0:01:15]} Rxd8 {[%emt 0:00:01]} 10. Bg5 {[%emt 0:00:15]} Re8 {[%emt 0:03:45]} 11. Rfd1 {[%emt 0:05:31]} c6 {[%emt 0:04:36]} 12. Nxe5 {[%emt 0:04:52]} Rxe5 {[%emt 0:14:01]} 13. Rd8+ {[%emt 0:00:25]} Ne8 {[%emt 0:03:10]} 14. f4 {[%emt 0:02:04]} Re6 {[%emt 0:02:40]} 15. Bg4 {[%emt 0:03:32]} Nac7 {[%emt 0:08:17]} 16. Bxe6 {[%emt 0:14:54]} Bxe6 {[%emt 0:00:33]} 17. Rad1 {[%emt 0:00:49]} f6 {[%emt 0:07:30]} 18. Bh4 {[%emt 0:01:33]} Rxd8 {[%emt 0:01:47]} 19. Rxd8 {[%emt 0:02:40]} Bxc4 {[%emt 0:13:25]} 20. Bf2 {[%emt 0:05:04]} b6 {[%emt 0:02:01]} 21. a4 {[%emt 0:01:47]} Kf8 {[%emt 0:03:40]} 22. a5 {[%emt 0:03:18]} Ke7 {[%emt 0:00:46]} 23. Rb8 {[%emt 0:04:53]} bxa5 {[%emt 0:04:41]} 24. Bxa7 {[%emt 0:02:58]} Nd6 {[%emt 0:08:00]} 25. Bc5 {[%emt 0:07:31]} Kd7 {[%emt 0:02:09]} 26. b3 {[%emt 0:04:37]} Bf7 {[%emt 0:05:15]} 27. Bxd6 {[%emt 0:03:46]} Kxd6 {[%emt 0:00:39]} 28. Kf2 {[%emt 0:01:49]} g5 {[%emt 0:02:09]} 29. f5 {[%emt 0:02:46]} Be8 {[%emt 0:05:00]} 30. Ke3 {[%emt 0:01:30]} Bf8 {[%emt 0:01:39]} 31. Ne2 {[%emt 0:02:38]} Ke5 {[%emt 0:02:48]} 32. Rb7 {[%emt 0:00:55]} Bc5+ {[%emt 0:01:16]} 33. Kd3 {[%emt 0:01:03]} Kd6 {[%emt 0:00:22]} 34. Nc3 {[%emt 0:01:02]} Nb5 {[%emt 0:02:27]} 35. Rxh7 {[%emt 0:01:26]} Nxc3 {[%emt 0:00:33]} 36. Kxc3 {[%emt 0:00:02]} Bb4+ {[%emt 0:00:58]} 37. Kd3 {[%emt 0:00:18]} c5 {[%emt 0:00:26]} 38. g3 {[%emt 0:01:29]} Bb5+ {[%emt 0:00:28]} 39. Ke3 {[%emt 0:00:35]} c4 {[%emt 0:00:36]} 40. bxc4 {[%emt 0:00:00]} Bxc4 {[%emt 0:00:00]} 41. h4 {[%emt 0:02:44]} gxh4 {[%emt 0:04:04]} 42. Kd4 {[%emt 0:03:15]} Ba6 {[%emt 0:08:40]} 43. gxh4 {[%emt 0:02:50]} a4 {[%emt 0:02:39]} 44. Rf7 {[%emt 0:01:03]} Bc5+ {[%emt 0:05:13]} 45. Kc3 {[%emt 0:00:46]} Ke5 {[%emt 0:00:58]} 46. h5 {[%emt 0:00:58]} a3 {[%emt 0:03:37]} 47. Rc7 {[%emt 0:11:19]} Bf8 {[%emt 0:07:22]} 48. Ra7 {[%emt 0:05:06]} Be2 {[%emt 0:00:29]} 49. Ra8 {[%emt 0:00:36]} Bh6 {[%emt 0:01:11]} 50. Rh8 {[%emt 0:02:29]} Bc1 {[%emt 0:00:29]} 51. h6 {[%emt 0:00:44]} a2 {[%emt 0:00:44]} 52. Re8+ {[%emt 0:02:05]} Kd6 {[%emt 0:00:25]} 53. Ra8 {[%emt 0:01:35]} Bxh6 {[%emt 0:00:13]} 54. Rxa2 {[%emt 0:00:08]} Bb5 {[%emt 0:00:49]} 55. Kd4 {[%emt 0:01:36]} Bf4 {[%emt 0:00:19]} 56. Rc2 {[%emt 0:00:46]} Be5+ {[%emt 0:00:54]} 57. Ke3 {[%emt 0:00:21]} Bc6 {[%emt 0:00:29]} 58. Rc1 {[%emt 0:00:47]} Kc7 {[%emt 0:00:07]} 59. Rb1 {[%emt 0:00:15]} Ba4 {[%emt 0:00:37]} 60. Rb4 {[%emt 0:00:43]} Be8 {[%emt 0:00:13]} 61. Rc4+ {[%emt 0:00:35]} Kb6 {[%emt 0:00:14]} 62. Rc2 {[%emt 0:00:40]} Kb5 {[%emt 0:00:11]} 63. Rc1 {[%emt 0:00:28]} Kb4 {[%emt 0:00:10]} 64. Rc8 {[%emt 0:00:20]} Bb5 {[%emt 0:00:20]} 65. Rc1 {[%emt 0:01:15]} Bc4 {[%emt 0:00:41]} 66. Rb1+ {[%emt 0:01:02]} Bb3 {[%emt 0:00:41]} 67. Kd3 {[%emt 0:00:19]} Ka3 {[%emt 0:00:20]} 68. Rc1 {[%emt 0:00:16]} Kb2 {[%emt 0:00:42]} 69. Rc5 {[%emt 0:01:33]} Ba2 {[%emt 0:00:20]} 70. Rc6 {[%emt 0:00:50]} Bb1+ {[%emt 0:01:01]} 71. Ke3 {[%emt 0:00:38]} Bc2 {[%emt 0:00:02]} 72. Rc5 {[%emt 0:01:11]} Ba4 {[%emt 0:00:48]} 73. Kd3 {[%emt 0:00:37]} Bb3 {[%emt 0:01:02]} 74. Rc6 {[%emt 0:00:31]} Ba4 {[%emt 0:00:34]} 75. Rc5 {[%emt 0:00:13]} Kb3 {[%emt 0:00:16]} 76. Rd5 {[%emt 0:00:49]} Kb4 {[%emt 0:00:30]} 77. Rd4+ {[%emt 0:00:21]} Kb5 {[%emt 0:00:36]} 78. Rd5+ {[%emt 0:00:22]} Kb4 {[%emt 0:00:18]} 79. Rd4+ {[%emt 0:00:06]} Kb3 {[%emt 0:00:07]} 80. Rd5 {[%emt 0:00:12]} Kb4 {[%emt 0:00:48]} 81. Rd4+ {[%emt 0:00:12]} Kb5 {[%emt 0:00:15]} 82. Rd5+ {[%emt 0:00:05]} Kc6 {[%emt 0:00:05]} 83. Rd8 {[%emt 0:01:15]} Bb5+ {[%emt 0:00:28]} 84. Ke3 {[%emt 0:00:20]} Kc5 {[%emt 0:00:04]} 85. Rc8+ {[%emt 0:00:12]} Kb4 {[%emt 0:00:15]} 86. Rc1 {[%emt 0:00:48]} Bc4 {[%emt 0:00:21]} 87. Rb1+ {[%emt 0:00:30]} Kc3 {[%emt 0:00:04]} 88. Rc1+ {[%emt 0:00:11]} Kb3 {[%emt 0:00:06]} 89. Rd1 {[%emt 0:00:16]} Kc2 {[%emt 0:00:36]} 90. Rd7 {[%emt 0:00:27]} Bb8 {[%emt 0:01:19]} 91. Rd2+ {[%emt 0:00:44]} Kc3 {[%emt 0:00:21]} 92. Rd7 {[%emt 0:00:11]} Bh2 {[%emt 0:00:49]} 93. Rd8 {[%emt 0:01:23]} Bg1+ {[%emt 0:00:45]} 94. Kf3 {[%emt 0:00:28]} Bd4 {[%emt 0:00:43]} 95. Re8 {[%emt 0:01:55]} Kd3 {[%emt 0:01:26]} 96. Kf4 {[%emt 0:00:19]} Be3+ {[%emt 0:00:51] Ke5} 1/2-1/2